fUST/lending_fUST_20250627
["ID","MTS","AMOUNT","RATE_DAILY","PERIOD"]
[368027257,1750998645943,-4942.73,0.000206,2]
[368027259,1750998645953,-253.37301939,0.00020626,2]
[368027261,1750998645962,-567.12,0.00020689,3]
[368027263,1750998645971,-6317.43255887,0.00020728,3]
[368027265,1750998645980,-252.0,0.00020814,2]
[368027267,1750998645990,-460.0,0.00020821,2]
[368027269,1750998645999,-460.0,0.00020821,2]
[368027271,1750998646008,-538.78,0.00020821,2]
[368027273,1750998646018,-460.0,0.00020821,2]
[368027275,1750998646027,-460.0,0.00020821,2]
[368027277,1750998646037,-460.0,0.00020821,2]
[368027279,1750998646046,-460.0,0.00020821,2]
[368027281,1750998646056,-973.65,0.00020821,2]
[368027283,1750998646065,-808.06,0.00020821,2]
[368027285,1750998646076,-460.0,0.00020821,2]
[368027287,1750998646085,-460.0,0.00020821,2]
[368027289,1750998646095,-460.0,0.00020821,2]
[368027291,1750998646104,-460.0,0.00020821,2]
[368027293,1750998646114,-483.75,0.00020821,2]
[368027295,1750998646123,-460.0,0.00020821,2]
[368027297,1750998646133,-325.94266074,0.00020821,2]
[368027299,1750998646142,-485.22,0.00020821,2]
[368027301,1750998646152,-710.05,0.00020821,2]
[368027303,1750998646161,-489.33,0.00020821,2]
[368027305,1750998646170,-460.0,0.00020821,2]
[368027307,1750998646179,-460.0,0.00020821,2]
[368027309,1750998646188,-533.06,0.00020821,2]
[368027311,1750998646197,-468.57303576,0.00020821,2]
[368027313,1750998646206,-463.93502338,0.00020821,2]
[368027315,1750998646215,-460.0,0.00020821,2]
[368027317,1750998646225,-460.0,0.00020821,2]
[368027319,1750998646234,-1511.68,0.00020821,2]
[368027321,1750998646243,-460.0,0.00020821,2]
[368027323,1750998646255,-460.0,0.00020821,2]
[368027325,1750998646264,-1608.24,0.00020821,2]
[368027327,1750998646273,-1424.67,0.00020821,2]
[368027329,1750998646283,-460.0,0.00020821,2]
[368027331,1750998646293,-504.16,0.00020821,2]
[368027333,1750998646302,-460.0,0.00020821,2]
[368027335,1750998646311,-460.0,0.00020821,2]
[368027337,1750998646320,-2130.67,0.00020821,2]
[368027339,1750998646332,-460.0,0.00020821,2]
[368027341,1750998646341,-460.0,0.00020821,2]
[368027343,1750998646350,-345.34094385,0.00020821,2]
[368027366,1750998646565,-460.0,0.00019178,2]
[368027368,1750998646574,-460.0,0.00019452,2]
[368027370,1750998646584,-1440.16,0.0002,2]
[368027372,1750998646593,-59.71120746,0.00020273,2]
[368027422,1750998647082,-1380.44879254,0.00020273,2]
[368027424,1750998647091,-213.75309343,0.00020521,3]
[368027426,1750998647102,-1440.16,0.00020547,2]
[368027428,1750998647111,-732.77494504,0.00020741,2]
[368027430,1750998647120,-415.50905615,0.00020821,2]
[368027432,1750998647129,-1072.28,0.00020821,2]
[368027434,1750998647138,-1995.74,0.00020821,2]
[368027436,1750998647147,-732.39,0.00020821,2]
[368027438,1750998647156,-460.0,0.00020821,2]
[368027440,1750998647165,-460.0,0.00020821,2]
[368027442,1750998647174,-800.65,0.00020821,2]
[368027443,1750998647183,-460.0,0.00020821,2]
[368027445,1750998647192,-460.0,0.00020821,2]
[368027447,1750998647201,-632.16,0.00020821,2]
[368027449,1750998647210,-460.0,0.00020821,2]
[368027451,1750998647220,-503.89,0.00020821,2]
[368027453,1750998647230,-1851.97,0.00020821,2]
[368027455,1750998647239,-460.0,0.00020821,2]
[368027457,1750998647252,-460.0,0.00020821,2]
[368027459,1750998647266,-2270.26,0.00020821,2]
[368027461,1750998647275,-460.0,0.00020821,2]
[368027463,1750998647284,-460.0,0.00020821,2]
[368027464,1750998647293,-547.77,0.00020821,2]
[368027466,1750998647302,-1302.05,0.00020821,2]
[368027468,1750998647311,-668.03,0.00020821,2]
[368027470,1750998647320,-476.1,0.00020821,2]
[368027472,1750998647330,-460.0,0.00020821,2]
[368027474,1750998647339,-520.94,0.00020821,2]
[368027476,1750998647347,-460.0,0.00020821,2]
[368027478,1750998647357,-460.0,0.00020821,2]
[368027480,1750998647366,-290.30397477,0.00020821,2]
[368027482,1750998647378,-1161.65602523,0.00020821,2]
[368027484,1750998647387,-460.0,0.00020821,2]
[368027486,1750998647396,-47.31417151,0.00020821,2]
[368027488,1750998647408,-609.52765627,0.00020821,2]
[368027504,1750998647556,-460.0,0.00019178,2]
[368027506,1750998647566,-460.0,0.00019178,2]
[368027508,1750998647575,-460.0,0.00019452,2]
[368027510,1750998647584,-460.0,0.00019726,2]
[368027512,1750998647593,-460.0,0.0002,2]
[368027514,1750998647602,-2887.37817222,0.00020821,2]
[368027516,1750998647612,-3191.64,0.00020821,2]
[368027518,1750998647621,-602.3,0.00020821,2]
[368027520,1750998647630,-799.69,0.00020821,2]
[368027522,1750998647640,-2058.5,0.00020821,2]
[368027523,1750998647648,-460.0,0.00020821,2]
[368027525,1750998647658,-460.0,0.00020821,2]
[368027527,1750998647667,-598.11,0.00020821,2]
[368027529,1750998647676,-980.63,0.00020821,2]
[368027531,1750998647685,-460.0,0.00020821,2]
[368027533,1750998647694,-720.16,0.00020821,2]
[368027535,1750998647704,-751.76,0.00020821,2]
[368027537,1750998647713,-1701.47,0.00020821,2]
[368027539,1750998647723,-460.0,0.00020821,2]
[368027541,1750998647732,-460.0,0.00020821,2]
[368027543,1750998647742,-934.13,0.00020821,2]
[368027545,1750998647751,-1440.16,0.00020821,2]
[368027547,1750998647762,-420.0,0.00020899,2]
[368027549,1750998647771,-151.0,0.000209,4]
[368027551,1750998647780,-6317.43255887,0.00020934,4]
[368027553,1750998647789,-6932.90631914,0.00021,2]
[368027554,1750998647798,-236.96739095,0.00021053,2]
[368027557,1750998647810,-179.30852546,0.00021053,2]
[368027558,1750998647819,-189.34354289,0.00021069,2]
[368027726,1750998649700,-272.27868955,0.00021069,2]
[368027741,1750998649843,-38.37776756,0.00021069,2]
[368027744,1750998649853,-485.74081998,0.00021095,2]
[368027746,1750998649863,-538.78,0.00021095,2]
[368027747,1750998649872,-460.0,0.00021095,2]
[368027750,1750998649882,-460.0,0.00021095,2]
[368027752,1750998649891,-460.0,0.00021095,2]
[368027754,1750998649900,-460.0,0.00021095,2]
[368027756,1750998649910,-973.65,0.00021095,2]
[368027758,1750998649919,-808.06,0.00021095,2]
[368027760,1750998649929,-460.0,0.00021095,2]
[368027761,1750998649939,-476.33,0.00021095,2]
[368027763,1750998649948,-231.17375202,0.00021095,2]
[368027765,1750998649958,-460.0,0.00021095,2]
[368027767,1750998649968,-483.75,0.00021095,2]
[368027769,1750998649977,-485.22,0.00021095,2]
[368027771,1750998649987,-710.05,0.00021095,2]
[368027773,1750998649996,-489.33,0.00021095,2]
[368027776,1750998650006,-460.0,0.00021095,2]
[368027778,1750998650019,-460.0,0.00021095,2]
[368027780,1750998650029,-533.06,0.00021095,2]
[368027782,1750998650039,-419.69212824,0.00021095,2]
[368027784,1750998650049,-460.0,0.00021095,2]
[368027786,1750998650059,-1511.68,0.00021095,2]
[368027788,1750998650069,-460.0,0.00021095,2]
[368027790,1750998650079,-1608.24,0.00021095,2]
[368027792,1750998650089,-460.0,0.00021095,2]
[368027794,1750998650099,-504.16,0.00021095,2]
[368027796,1750998650109,-460.0,0.00021095,2]
[368027798,1750998650118,-460.0,0.00021095,2]
[368027800,1750998650128,-2130.67,0.00021095,2]
[368027802,1750998650138,-460.0,0.00021095,2]
[368027804,1750998650147,-460.0,0.00021095,2]
[368027806,1750998650157,-760.85,0.00021095,2]
[368027808,1750998650167,-1072.28,0.00021095,2]
[368027810,1750998650176,-1727.77688864,0.00021095,2]
[368029768,1750998859542,400.0,0.00023,30]
[368029769,1750998875986,-150.0,0.000189,2]
[368029770,1750998876011,-334.0,0.00019078,2]
[368029771,1750999002704,-158.06052439,0.00019077,2]
[368029772,1750999002726,-158.06052438,0.00019077,2]
[368029773,1750999002747,-158.06052438,0.00019078,2]
[368029774,1750999002770,-71.81842685,0.00019078,2]
[368029775,1750999197340,-150.0,0.000189,2]
[368029776,1750999197361,-158.06052438,0.00019077,2]
[368029777,1750999197382,-432.04837106,0.00019078,2]
[368029778,1750999197403,-300.0,0.00019176,2]
[368029779,1750999197423,-1000.0,0.00019177,2]
[368029780,1750999197444,-300.0,0.00019177,2]
[368029781,1750999197465,-1200.0,0.00019177,2]
[368029782,1750999197486,-300.0,0.00019177,2]
[368029783,1750999197507,-460.0,0.00019178,2]
[368029784,1750999197528,-460.0,0.00019178,2]
[368029785,1750999197548,-460.0,0.00019178,2]
[368029786,1750999197573,-460.0,0.00019178,2]
[368029787,1750999197594,-460.0,0.00019178,2]
[368029788,1750999197615,-460.0,0.00019178,2]
[368029789,1750999197636,-460.0,0.00019178,2]
[368029790,1750999197659,-460.0,0.00019178,2]
[368029791,1750999197851,-460.0,0.00019178,2]
[368029792,1750999197873,-460.4197075,0.00019178,2]
[368029793,1750999197894,-460.0,0.00019178,2]
[368029794,1750999197915,-460.0,0.00019178,2]
[368029795,1750999197936,-406.38651822,0.00019178,2]
[368029796,1750999197958,-460.0,0.00019178,2]
[368029797,1750999197979,-433.46174028,0.00019178,2]
[368029798,1750999198000,-430.0,0.00019178,2]
[368029799,1750999198022,-500.0,0.00019178,2]
[368029800,1750999198044,-460.0,0.00019178,2]
[368029801,1750999198065,-460.0,0.00019178,2]
[368029802,1750999198087,-47.62313856,0.00019178,2]
[368029821,1750999832326,-161.6295121,0.00018666,2]
[368029822,1750999832336,-596.58,0.00019168,3]
[368029823,1750999832345,-300.0,0.00019177,2]
[368029824,1750999832355,-493.30092622,0.00019177,2]
[368029825,1750999832364,-212.05473816,0.00019177,2]
[368029826,1750999832374,-627.34988253,0.00019177,2]
[368029827,1750999832383,-250.10435882,0.00019177,2]
[368029828,1750999832397,-223.07730349,0.00019178,2]
[368029829,1750999832406,-460.0,0.00019178,2]
[368029830,1750999832416,-460.0,0.00019178,2]
[368029831,1750999832426,-397.32269341,0.00019178,2]
[368029832,1750999832437,-460.0,0.00019178,2]
[368029833,1750999832447,-460.0,0.00019178,2]
[368029834,1750999832456,-460.0,0.00019178,2]
[368029835,1750999832466,-460.0,0.00019178,2]
[368029836,1750999832475,-460.0,0.00019178,2]
[368029837,1750999832484,-460.0,0.00019178,2]
[368029838,1750999832494,-460.0,0.00019178,2]
[368029839,1750999832503,-460.0,0.00019178,2]
[368029840,1750999832512,-468.90097437,0.00019178,2]
[368029841,1750999832522,-525.4676453,0.00019178,2]
[368029842,1750999832531,-460.0,0.00019178,2]
[368029843,1750999832541,-460.0,0.00019178,2]
[368029844,1750999832550,-460.0,0.00019178,2]
[368029845,1750999832561,-460.0,0.00019178,2]
[368029846,1750999832570,-460.0,0.00019178,2]
[368029847,1750999832579,-460.0,0.00019178,2]
[368029848,1750999832589,-460.0,0.00019178,2]
[368029849,1750999832599,-460.0,0.00019178,2]
[368029850,1750999832608,-460.0,0.00019178,2]
[368029851,1750999832617,-460.0,0.00019178,2]
[368029852,1750999832627,-460.0,0.00019178,2]
[368029853,1750999832636,-467.85559498,0.00019178,2]
[368029854,1750999832645,-463.07175187,0.00019178,2]
[368029855,1750999832655,-460.0,0.00019178,2]
[368029856,1750999832664,-460.0,0.00019178,2]
[368029857,1750999832673,-518.58366869,0.00019178,2]
[368029858,1750999832683,-460.0,0.00019178,2]
[368029859,1750999832692,-460.0,0.00019178,2]
[368029860,1750999832701,-460.0,0.00019178,2]
[368029861,1750999832710,-460.0,0.00019178,2]
[368029862,1750999832719,-460.0,0.00019178,2]
[368029863,1750999832729,-460.0,0.00019178,2]
[368029864,1750999832739,-191.58917147,0.00019178,2]
[368029865,1750999832748,-460.0,0.00019178,2]
[368029866,1750999832758,-413.18436601,0.00019178,2]
[368029867,1750999832767,-460.0,0.00019178,2]
[368029868,1750999832777,-460.0,0.00019178,2]
[368029869,1750999832786,-460.0,0.00019178,2]
[368029870,1750999832796,-460.0,0.00019178,2]
[368029871,1750999832806,-460.0,0.00019178,2]
[368029872,1750999832815,-404.93006758,0.00019178,2]
[368029873,1750999832824,-353.42500665,0.00019178,2]
[368029874,1750999832833,-511.06,0.00019178,2]
[368029875,1750999832842,-460.0,0.00019178,2]
[368029876,1750999832851,-460.0,0.00019178,2]
[368029877,1750999832861,-460.0,0.00019178,2]
[368029878,1750999832870,-460.0,0.00019178,2]
[368029879,1750999832879,-460.0,0.00019178,2]
[368029880,1750999832888,-460.0,0.00019178,2]
[368029881,1750999832898,-460.0,0.00019178,2]
[368029882,1750999832908,-266.73850832,0.00019178,2]
[368029883,1750999832917,-460.0,0.00019178,2]
[368029884,1750999832927,-460.0,0.00019178,2]
[368029885,1750999832936,-460.0,0.00019178,2]
[368029886,1750999832946,-460.0,0.00019178,2]
[368029887,1750999832956,-460.0,0.00019178,2]
[368029888,1750999832966,-460.0,0.00019178,2]
[368029889,1750999832976,-460.0,0.00019178,2]
[368029890,1750999832985,-460.0,0.00019178,2]
[368029891,1750999832995,-460.0,0.00019178,2]
[368029892,1750999833005,-460.0,0.00019178,2]
[368029893,1750999833015,-460.0,0.00019178,2]
[368029894,1750999833024,-460.0,0.00019178,2]
[368029895,1750999833034,-460.0,0.00019178,2]
[368029896,1750999833044,-460.0,0.00019178,2]
[368029897,1750999833053,-460.0,0.00019178,2]
[368029898,1750999833063,-460.0,0.00019178,2]
[368029899,1750999833073,-460.0,0.00019178,2]
[368029900,1750999833083,-851.95,0.00019178,2]
[368029901,1750999833093,-471.80095257,0.00019178,2]
[368029902,1750999833103,-460.0,0.00019178,2]
[368029903,1750999833112,-460.0,0.00019178,2]
[368029904,1750999833122,-460.0,0.00019178,2]
[368029905,1750999833132,-458.81128959,0.00019178,2]
[368029906,1750999833142,-460.0,0.00019178,2]
[368029907,1750999833151,-500.0,0.00019178,2]
[368029908,1750999833161,-500.0,0.00019178,2]
[368029909,1750999833171,-500.0,0.00019178,2]
[368029910,1750999833181,-500.0,0.00019178,2]
[368029911,1750999833190,-500.0,0.00019178,2]
[368029912,1750999833200,-460.15351694,0.00019178,2]
[368029913,1750999833209,-431.14790193,0.00019178,2]
[368029914,1750999833227,-28.85209807,0.00019178,2]
[368029915,1750999833237,-460.0,0.00019178,2]
[368029916,1750999833247,-460.0,0.00019178,2]
[368029917,1750999833256,-502.89,0.00019178,2]
[368029918,1750999833266,-455.22870834,0.00019178,2]
[368029919,1750999833278,-4.77129166,0.00019178,2]
[368029920,1750999833461,-460.0,0.00019178,2]
[368029921,1750999833471,-460.0,0.00019178,2]
[368029922,1750999833480,-460.0,0.00019178,2]
[368029923,1750999833490,-460.0,0.00019178,2]
[368029924,1750999833499,-141.30118825,0.00019178,2]
[368029925,1750999833511,-639.95881175,0.00019178,2]
[368029926,1750999833521,-33.5444862,0.00019178,2]
[368029927,1750999833532,-426.4555138,0.00019178,2]
[368029928,1750999833543,-35.7724862,0.00019178,2]
[368029929,1750999833555,-424.2275138,0.00019178,2]
[368029930,1750999833565,-503.03284499,0.00019178,2]
[368029931,1750999833575,-460.0,0.00019178,2]
[368029932,1750999833584,-160.39523117,0.00019178,2]
[368029933,1750999833594,-233.67486768,0.00019178,2]
[368029957,1750999838276,-266.32513232,0.00019178,2]
[368029959,1750999838285,-460.0,0.00019178,2]
[368029961,1750999838294,-425.27777638,0.00019178,2]
[368029963,1750999838304,-460.0,0.00019178,2]
[368029965,1750999838313,-450.0,0.00019178,2]
[368029967,1750999838323,-460.0,0.00019178,2]
[368029969,1750999838332,-460.0,0.00019178,2]
[368029971,1750999838342,-460.0,0.00019178,2]
[368029973,1750999838351,-460.0,0.00019178,2]
[368029975,1750999838361,-460.0,0.00019178,2]
[368029977,1750999838370,-460.0,0.00019178,2]
[368029978,1750999838379,-287.20446138,0.00019178,2]
[368029981,1750999838390,-172.79553862,0.00019178,2]
[368029983,1750999838399,-460.0,0.00019178,2]
[368029984,1750999838412,-460.0,0.00019178,2]
[368029986,1750999838421,-460.0,0.00019178,2]
[368029988,1750999838431,-460.0,0.00019178,2]
[368029990,1750999838440,-460.0,0.00019178,2]
[368029992,1750999838449,-460.0,0.00019178,2]
[368029994,1750999838461,-460.0,0.00019178,2]
[368029996,1750999838470,-460.0,0.00019178,2]
[368029998,1750999838480,-460.0,0.00019178,2]
[368030000,1750999838489,-460.0,0.00019178,2]
[368030002,1750999838498,-460.0,0.00019178,2]
[368030004,1750999838507,-460.0,0.00019178,2]
[368030006,1750999838516,-460.0,0.00019178,2]
[368030008,1750999838525,-460.0,0.00019178,2]
[368030010,1750999838534,-460.0,0.00019178,2]
[368030012,1750999838543,-460.0,0.00019178,2]
[368030014,1750999838552,-460.0,0.00019178,2]
[368030016,1750999838561,-460.0,0.00019178,2]
[368030018,1750999838571,-460.0,0.00019178,2]
[368030020,1750999838580,-440.0,0.00019178,2]
[368030022,1750999838589,-460.0,0.00019178,2]
[368030024,1750999838598,-0.39819673,0.00019178,2]
[368030026,1750999838610,-459.60180327,0.00019178,2]
[368030028,1750999838619,-460.0,0.00019178,2]
[368030030,1750999838629,-460.0,0.00019178,2]
[368030032,1750999838638,-460.0,0.00019178,2]
[368030034,1750999838648,-556.07,0.00019178,2]
[368030036,1750999838658,-511.66,0.00019178,2]
[368030038,1750999838667,-460.0,0.00019178,2]
[368030040,1750999838676,-460.0,0.00019178,2]
[368030042,1750999838685,-460.0,0.00019178,2]
[368030044,1750999838694,-460.0,0.00019178,2]
[368030046,1750999838703,-460.0,0.00019178,2]
[368030048,1750999838712,-460.0,0.00019178,2]
[368030050,1750999838722,-460.0,0.00019178,2]
[368030052,1750999838731,-460.0,0.00019178,2]
[368030054,1750999838740,-460.0,0.00019178,2]
[368030056,1750999838750,-460.0,0.00019178,2]
[368030058,1750999838759,-206.04581352,0.00019178,2]
[368030060,1750999838771,-253.95418648,0.00019178,2]
[368030062,1750999838780,-460.0,0.00019178,2]
[368030064,1750999838789,-162.98572362,0.00019178,2]
[368030066,1750999838800,-297.01427638,0.00019178,2]
[368030068,1750999838810,-460.0,0.00019178,2]
[368030071,1750999838819,-460.0,0.00019178,2]
[368030073,1750999838828,-500.0,0.00019178,2]
[368030075,1750999838838,-460.0,0.00019178,2]
[368030076,1750999838848,-755.82,0.00019178,2]
[368030078,1750999838857,-460.0,0.00019178,2]
[368030081,1750999838866,-500.0,0.00019178,2]
[368030083,1750999838875,-460.0,0.00019178,2]
[368030084,1750999838885,-460.0,0.00019178,2]
[368030086,1750999838894,-460.0,0.00019178,2]
[368030088,1750999838903,-460.0,0.00019178,2]
[368030090,1750999838913,-579.61,0.00019178,2]
[368030092,1750999838922,-436.53522847,0.00019178,2]
[368030094,1750999838932,-460.0,0.00019178,2]
[368030096,1750999838941,-460.0,0.00019178,2]
[368030098,1750999838950,-460.0,0.00019178,2]
[368030100,1750999838959,-582.57,0.00019178,2]
[368030102,1750999838969,-1368.78,0.00019178,2]
[368030104,1750999838979,-460.0,0.00019178,2]
[368030106,1750999838988,-460.0,0.00019178,2]
[368030108,1750999838997,-430.0,0.00019178,2]
[368030110,1750999839006,-460.0,0.00019178,2]
[368030112,1750999839016,-460.0,0.00019178,2]
[368030114,1750999839025,-398.91175322,0.00019178,2]
[368030116,1750999839035,-460.0,0.00019178,2]
[368030118,1750999839045,-460.0,0.00019178,2]
[368030120,1750999839054,-460.0,0.00019178,2]
[368030122,1750999839065,-305.12601992,0.00019178,2]
[368030124,1750999839074,-460.0,0.00019178,2]
[368030126,1750999839083,-314.61656935,0.00019178,2]
[368030128,1750999839092,-460.0,0.00019178,2]
[368030130,1750999839101,-177.35874871,0.00019178,2]
[368030132,1750999839110,-460.0,0.00019178,2]
[368030134,1750999839119,-558.64,0.00019178,2]
[368030136,1750999839129,-151.0,0.00019178,2]
[368030138,1750999839138,-460.0,0.00019178,2]
[368030140,1750999839147,-151.0,0.00019178,2]
[368030142,1750999839156,-151.0,0.00019178,2]
[368030143,1750999839166,-460.0,0.00019178,2]
[368030145,1750999839175,-460.0,0.00019178,2]
[368030147,1750999839184,-460.0,0.00019178,2]
[368030149,1750999839193,-460.0,0.00019178,2]
[368030151,1750999839202,-460.0,0.00019178,2]
[368030153,1750999839211,-460.0,0.00019178,2]
[368030155,1750999839220,-151.39028563,0.00019178,2]
[368030157,1750999839228,-460.0,0.00019178,2]
[368030159,1750999839237,-525.28,0.00019178,2]
[368030161,1750999839247,-429.22124956,0.00019178,2]
[368030163,1750999839256,-460.0,0.00019178,2]
[368030165,1750999839265,-460.0,0.00019178,2]
[368030167,1750999839274,-460.0,0.00019178,2]
[368030169,1750999839283,-398.57137614,0.00019178,2]
[368030171,1750999839292,-234.55542494,0.00019178,2]
[368030173,1750999839305,-460.0,0.00019178,2]
[368030175,1750999839314,-321.60710526,0.00019178,2]
[368030177,1750999839326,-376.98289474,0.00019178,2]
[368030179,1750999839335,-1698.41,0.00019178,2]
[368030181,1750999839344,-460.0,0.00019178,2]
[368030183,1750999839353,-460.0,0.00019178,2]
[368030185,1750999839362,-516.57,0.00019178,2]
[368030187,1750999839372,-460.0,0.00019178,2]
[368030189,1750999839381,-1646.94,0.00019178,2]
[368030191,1750999839391,-538.65,0.00019178,2]
[368030193,1750999839399,-460.0,0.00019178,2]
[368030195,1750999839410,-460.0,0.00019178,2]
[368030197,1750999839419,-460.0,0.00019178,2]
[368030199,1750999839429,-464.71,0.00019178,2]
[368030201,1750999839438,-2283.74,0.00019178,2]
[368030202,1750999839448,-460.0,0.00019178,2]
[368030205,1750999839457,-460.0,0.00019178,2]
[368030206,1750999839466,-151.49063521,0.00019178,2]
[368030208,1750999839476,-460.0,0.00019178,2]
[368030210,1750999839485,-151.0,0.00019178,2]
[368030213,1750999839495,-460.0,0.00019178,2]
[368030214,1750999839503,-151.0,0.00019178,2]
[368030216,1750999839513,-460.0,0.00019178,2]
[368030218,1750999839522,-151.0,0.00019178,2]
[368030220,1750999839532,-151.0,0.00019178,2]
[368030222,1750999839542,-153.33222324,0.00019178,2]
[368030224,1750999839552,-460.0,0.00019178,2]
[368030226,1750999839562,-409.70017524,0.00019178,2]
[368030228,1750999839572,-460.0,0.00019178,2]
[368030230,1750999839581,-460.0,0.00019178,2]
[368030232,1750999839589,-1208.66,0.00019178,2]
[368030234,1750999839598,-151.0,0.00019178,2]
[368030236,1750999839607,-199.26989225,0.00019178,2]
[368030238,1750999839616,-460.0,0.00019178,2]
[368030239,1750999839625,-151.0,0.00019178,2]
[368030240,1750999839634,-460.0,0.00019178,2]
[368030241,1750999839643,-460.0,0.00019178,2]
[368030242,1750999839652,-460.0,0.00019178,2]
[368030243,1750999839662,-460.0,0.00019178,2]
[368030244,1750999839671,-343.78969584,0.00019178,2]
[368030246,1750999839680,-837.04,0.00019178,2]
[368030248,1750999839690,-460.0,0.00019178,2]
[368030250,1750999839700,-1824.86,0.00019178,2]
[368030252,1750999839709,-730.84,0.00019178,2]
[368030254,1750999839718,-2140.66,0.00019178,2]
[368030256,1750999839728,-461.99404136,0.00019178,2]
[368030258,1750999839737,-460.0,0.00019178,2]
[368030260,1750999839746,-337.33769466,0.00019178,2]
[368030261,1750999839755,-789.54,0.00019178,2]
[368030263,1750999839765,-460.0,0.00019178,2]
[368030266,1750999839775,-460.0,0.00019178,2]
[368030268,1750999839784,-460.0,0.00019178,2]
[368030270,1750999839793,-460.0,0.00019178,2]
[368030272,1750999839804,-608.35,0.00019178,2]
[368030274,1750999839813,-460.0,0.00019178,2]
[368030275,1750999839823,-460.0,0.00019178,2]
[368030277,1750999839832,-460.0,0.00019178,2]
[368030279,1750999839841,-460.0,0.00019178,2]
[368030281,1750999839850,-460.0,0.00019178,2]
[368030283,1750999839859,-460.0,0.00019178,2]
[368030286,1750999839869,-582.08,0.00019178,2]
[368030288,1750999839877,-464.50622686,0.00019178,2]
[368030290,1750999839887,-460.0,0.00019178,2]
[368030292,1750999839896,-460.0,0.00019178,2]
[368030294,1750999839906,-460.0,0.00019178,2]
[368030296,1750999839915,-460.0,0.00019178,2]
[368030298,1750999839924,-460.0,0.00019178,2]
[368030301,1750999839934,-460.0,0.00019178,2]
[368030303,1750999839943,-162.48177066,0.00019178,2]
[368030304,1750999839952,-460.0,0.00019178,2]
[368030307,1750999839965,-460.0,0.00019178,2]
[368030309,1750999839974,-460.0,0.00019178,2]
[368030312,1750999839984,-460.0,0.00019178,2]
[368030315,1750999839994,-460.0,0.00019178,2]
[368030317,1750999840003,-460.0,0.00019178,2]
[368030319,1750999840013,-460.0,0.00019178,2]
[368030321,1750999840022,-460.0,0.00019178,2]
[368030323,1750999840031,-460.0,0.00019178,2]
[368030325,1750999840041,-460.0,0.00019178,2]
[368030327,1750999840052,-460.0,0.00019178,2]
[368030329,1750999840062,-460.0,0.00019178,2]
[368030331,1750999840072,-1486.78,0.00019178,2]
[368030333,1750999840081,-500.0,0.00019178,2]
[368030335,1750999840091,-258.81310148,0.00019178,2]
[368030337,1750999840100,-460.0,0.00019178,2]
[368030339,1750999840110,-503.6,0.00019178,2]
[368030341,1750999840120,-746.29,0.00019178,2]
[368030343,1750999840129,-460.0,0.00019178,2]
[368030345,1750999840139,-460.0,0.00019178,2]
[368030347,1750999840148,-151.0,0.00019178,2]
[368030349,1750999840157,-211.88587397,0.00019178,2]
[368030351,1750999840167,-460.0,0.00019178,2]
[368030353,1750999840176,-460.0,0.00019178,2]
[368030355,1750999840185,-460.0,0.00019178,2]
[368030357,1750999840194,-2370.59,0.00019178,2]